[Event "Titled Tuesday Blitz August 15 Early 2023"]
[White "Molina, Roberto Junio Brito"]
[Black "Toncheva, Nadya"]
[WhiteFideId "2109450"]
[BlackFideId "2924056"]
[WhiteElo "2808"]
[BlackElo "2556"]
[Result "1/2-1/2"]
[Round "5"]
[TimeControl "180+1"]
[Date "2023.08.15"]
[WhiteClock "0:00:11"]
[BlackClock "0:00:07"]
[Board "51"]

1. d4 {[%clk 0:02:56]}  Nf6 {[%clk 0:02:48]} 2. c4 {[%clk 0:02:55]}  e6 {[%clk 0:02:42]} 3. Nf3 {[%clk 0:02:53]}  d5 {[%clk 0:02:42]} 4. Nc3 {[%clk 0:02:52]}  c5 {[%clk 0:02:38]} 5. cxd5 {[%clk 0:02:50]}  exd5 {[%clk 0:02:38]} 6. Bg5 {[%clk 0:02:49]}  Nc6 {[%clk 0:02:16]} 7. g3 {[%clk 0:02:48]}  Be7 {[%clk 0:02:13]} 8. Bg2 {[%clk 0:02:47]}  O-O {[%clk 0:02:14]} 9. O-O {[%clk 0:02:47]}  Be6 {[%clk 0:02:03]} 10. dxc5 {[%clk 0:02:43]}  Bxc5 {[%clk 0:02:02]} 11. Rc1 {[%clk 0:02:42]}  Be7 {[%clk 0:02:00]} 12. Nd4 {[%clk 0:02:37]}  Qd7 {[%clk 0:01:59]} 13. Na4 {[%clk 0:02:24]}  h6 {[%clk 0:01:43]} 14. Bf4 {[%clk 0:02:01]}  Rac8 {[%clk 0:01:17]} 15. Nc5 {[%clk 0:01:52]}  Bxc5 {[%clk 0:01:17]} 16. Rxc5 {[%clk 0:01:52]}  Ne4 {[%clk 0:01:11]} 17. Nxe6 {[%clk 0:01:31]}  Qxe6 {[%clk 0:01:05]} 18. Rxd5 {[%clk 0:01:25]}  Nf6 {[%clk 0:01:03]} 19. Rd6 {[%clk 0:01:19]}  Qxa2 {[%clk 0:01:04]} 20. Qa1 {[%clk 0:00:46]}  Qxa1 {[%clk 0:00:59]} 21. Rxa1 {[%clk 0:00:47]}  Rfe8 {[%clk 0:00:44]} 22. Kf1 {[%clk 0:00:24]}  Ne4 {[%clk 0:00:43]} 23. Rd7 {[%clk 0:00:23]}  Nc5 {[%clk 0:00:39]} 24. Rd5 {[%clk 0:00:22]}  Ne6 {[%clk 0:00:36]} 25. Be3 {[%clk 0:00:22]}  a6 {[%clk 0:00:32]} 26. Rad1 {[%clk 0:00:20]}  Nc7 {[%clk 0:00:21]} 27. Rd7 {[%clk 0:00:20]}  Ne5 {[%clk 0:00:21]} 28. R7d4 {[%clk 0:00:18]}  Nb5 {[%clk 0:00:19]} 29. Rb4 {[%clk 0:00:18]}  Nc6 {[%clk 0:00:14]} 30. Rc4 {[%clk 0:00:16]}  Na5 {[%clk 0:00:14]} 31. Rxc8 {[%clk 0:00:15]}  Rxc8 {[%clk 0:00:15]} 32. Rc1 {[%clk 0:00:12]}  Nc4 {[%clk 0:00:13]} 33. Ke1 {[%clk 0:00:10]}  Nbd6 {[%clk 0:00:13]} 34. Bh3 {[%clk 0:00:07]}  Rc6 {[%clk 0:00:10]} 35. Bf4 {[%clk 0:00:07]}  g5 {[%clk 0:00:06]} 36. Bxd6 {[%clk 0:00:07]}  Nxd6 {[%clk 0:00:07]} 37. Rxc6 {[%clk 0:00:06]}  bxc6 {[%clk 0:00:08]} 38. Kd2 {[%clk 0:00:07]}  Kf8 {[%clk 0:00:06]} 39. Kd3 {[%clk 0:00:07]}  c5 {[%clk 0:00:06]} 40. e4 {[%clk 0:00:07]}  Ke7 {[%clk 0:00:04]} 41. e5 {[%clk 0:00:07]}  Nb5 {[%clk 0:00:02]} 42. Kc4 {[%clk 0:00:07]}  Nd4 {[%clk 0:00:03]} 43. Kxc5 {[%clk 0:00:06]}  Nf3 {[%clk 0:00:03]} 44. Kd5 {[%clk 0:00:06]}  Nxh2 {[%clk 0:00:03]} 45. Bg2 {[%clk 0:00:07]}  Ng4 {[%clk 0:00:03]} 46. Bf1 {[%clk 0:00:05]}  a5 {[%clk 0:00:03]} 47. Kc5 {[%clk 0:00:04]}  Nxf2 {[%clk 0:00:03]} 48. Kb5 {[%clk 0:00:05]}  Ng4 {[%clk 0:00:02]} 49. Kxa5 {[%clk 0:00:06]}  Nxe5 {[%clk 0:00:03]} 50. Kb6 {[%clk 0:00:06]}  Kd6 {[%clk 0:00:03]} 51. Ka6 {[%clk 0:00:06]}  Kc5 {[%clk 0:00:02]} 52. Ka5 {[%clk 0:00:05]}  Nc6+ {[%clk 0:00:02]} 53. Ka4 {[%clk 0:00:05]}  f5 {[%clk 0:00:03]} 54. Bg2 {[%clk 0:00:05]}  Nb4 {[%clk 0:00:02]} 55. Bf1 {[%clk 0:00:06]}  h5 {[%clk 0:00:03]} 56. Be2 {[%clk 0:00:06]}  h4 {[%clk 0:00:02]} 57. gxh4 {[%clk 0:00:07]}  gxh4 {[%clk 0:00:03]} 58. Bf3 {[%clk 0:00:07]}  f4 {[%clk 0:00:03]} 59. Kb3 {[%clk 0:00:08]}  h3 {[%clk 0:00:03]} 60. Kc3 {[%clk 0:00:08]}  Nd5+ {[%clk 0:00:02]} 61. Kd3 {[%clk 0:00:09]}  Nf6 {[%clk 0:00:02]} 62. Kc3 {[%clk 0:00:08]}  h2 {[%clk 0:00:02]} 63. b4+ {[%clk 0:00:08]}  Kb5 {[%clk 0:00:02]} 64. Kb3 {[%clk 0:00:09]}  Kb6 {[%clk 0:00:02]} 65. Kc4 {[%clk 0:00:09]}  Nh5 {[%clk 0:00:03]} 66. Kd4 {[%clk 0:00:09]}  Ng3 {[%clk 0:00:04]} 67. Ke5 {[%clk 0:00:09]}  h1=Q {[%clk 0:00:04]} 68. Bxh1 {[%clk 0:00:10]}  Nxh1 {[%clk 0:00:05]} 69. Kxf4 {[%clk 0:00:11]}  Kb5 {[%clk 0:00:06]} 70. Ke3 {[%clk 0:00:11]}  Kxb4 {[%clk 0:00:07]} 1/2-1/2


[Site "https://www.chess.com"]

[Event "Titled Tuesday Blitz August 15 Early 2023"]
[White "Perdomo, Carlos Andres"]
[Black "Mekhitarian, Krikor Sevag"]
[WhiteFideId "4400852"]
[BlackFideId "2107660"]
[WhiteElo "2555"]
[BlackElo "2800"]
[Result "0-1"]
[Round "5"]
[TimeControl "180+1"]
[Date "2023.08.15"]
[WhiteClock "0:00:07"]
[BlackClock "0:00:08"]
[Board "52"]

1. Nf3 {[%clk 0:02:57]}  d5 {[%clk 0:02:54]} 2. d4 {[%clk 0:02:52]}  Nf6 {[%clk 0:02:54]} 3. c4 {[%clk 0:02:49]}  e6 {[%clk 0:02:51]} 4. Nc3 {[%clk 0:02:43]}  a6 {[%clk 0:02:46]} 5. cxd5 {[%clk 0:02:32]}  exd5 {[%clk 0:02:47]} 6. Bg5 {[%clk 0:02:30]}  Be6 {[%clk 0:02:47]} 7. e3 {[%clk 0:02:30]}  Nbd7 {[%clk 0:02:47]} 8. Bd3 {[%clk 0:02:24]}  Bd6 {[%clk 0:02:46]} 9. O-O {[%clk 0:02:22]}  c6 {[%clk 0:02:46]} 10. Qc2 {[%clk 0:02:15]}  h6 {[%clk 0:02:36]} 11. Bxf6 {[%clk 0:02:06]}  Nxf6 {[%clk 0:02:35]} 12. a3 {[%clk 0:01:54]}  Qc7 {[%clk 0:02:23]} 13. Bf5 {[%clk 0:01:41]}  Qc8 {[%clk 0:01:43]} 14. Bxe6 {[%clk 0:01:40]}  Qxe6 {[%clk 0:01:44]} 15. b4 {[%clk 0:01:39]}  O-O {[%clk 0:01:43]} 16. Rab1 {[%clk 0:01:32]}  Rac8 {[%clk 0:01:38]} 17. Na4 {[%clk 0:01:17]}  Ne4 {[%clk 0:01:38]} 18. Nc5 {[%clk 0:01:16]}  Qe7 {[%clk 0:01:38]} 19. Nxe4 {[%clk 0:01:10]}  dxe4 {[%clk 0:01:39]} 20. Nd2 {[%clk 0:01:10]}  f5 {[%clk 0:01:39]} 21. g3 {[%clk 0:01:11]}  Qe6 {[%clk 0:01:35]} 22. Qc4 {[%clk 0:01:10]}  Kf7 {[%clk 0:01:35]} 23. Qxe6+ {[%clk 0:01:10]}  Kxe6 {[%clk 0:01:36]} 24. Rfc1 {[%clk 0:01:10]}  g5 {[%clk 0:01:33]} 25. a4 {[%clk 0:01:07]}  h5 {[%clk 0:01:27]} 26. b5 {[%clk 0:01:04]}  cxb5 {[%clk 0:01:26]} 27. axb5 {[%clk 0:01:04]}  Rxc1+ {[%clk 0:01:23]} 28. Rxc1 {[%clk 0:01:04]}  axb5 {[%clk 0:01:24]} 29. Rb1 {[%clk 0:01:04]}  b4 {[%clk 0:01:17]} 30. Nc4 {[%clk 0:01:03]}  Be7 {[%clk 0:01:17]} 31. Nb6 {[%clk 0:00:37]}  Rd8 {[%clk 0:01:02]} 32. Kf1 {[%clk 0:00:24]}  h4 {[%clk 0:00:48]} 33. Ke2 {[%clk 0:00:23]}  h3 {[%clk 0:00:48]} 34. Kd2 {[%clk 0:00:22]}  Bd6 {[%clk 0:00:40]} 35. Kc2 {[%clk 0:00:20]}  f4 {[%clk 0:00:35]} 36. Kb3 {[%clk 0:00:18]}  fxg3 {[%clk 0:00:30]} 37. fxg3 {[%clk 0:00:16]}  Rf8 {[%clk 0:00:29]} 38. Rb2 {[%clk 0:00:17]}  g4 {[%clk 0:00:25]} 39. Nc4 {[%clk 0:00:17]}  Rf3 {[%clk 0:00:21]} 40. Re2 {[%clk 0:00:16]}  Bxg3 {[%clk 0:00:09]} 41. hxg3 {[%clk 0:00:15]}  Rxg3 {[%clk 0:00:10]} 42. Nd2 {[%clk 0:00:15]}  Rg2 {[%clk 0:00:10]} 43. Re1 {[%clk 0:00:08]}  Rxd2 {[%clk 0:00:10]} 44. Rg1 {[%clk 0:00:07]}  h2 {[%clk 0:00:08]} 0-1


[Site "https://www.chess.com"]

[Event "Titled Tuesday Blitz August 15 Early 2023"]
[White "maksimys18"]
[Black "Yanchenko, Roman"]
[BlackFideId "4137329"]
[WhiteElo "2540"]
[BlackElo "2777"]
[Result "0-1"]
[Round "5"]
[TimeControl "180+1"]
[Date "2023.08.15"]
[WhiteClock "0:00:19"]
[BlackClock "0:00:11"]
[Board "54"]

1. d4 {[%clk 0:02:59]}  d5 {[%clk 0:02:59]} 2. Nf3 {[%clk 0:02:59]}  Nf6 {[%clk 0:02:58]} 3. c4 {[%clk 0:03:00]}  c6 {[%clk 0:02:58]} 4. Nc3 {[%clk 0:03:00]}  a6 {[%clk 0:02:58]} 5. a4 {[%clk 0:03:00]}  Bf5 {[%clk 0:02:58]} 6. Bg5 {[%clk 0:02:59]}  e6 {[%clk 0:02:57]} 7. e3 {[%clk 0:02:59]}  Nbd7 {[%clk 0:02:57]} 8. cxd5 {[%clk 0:02:59]}  exd5 {[%clk 0:02:56]} 9. Bd3 {[%clk 0:02:59]}  Bxd3 {[%clk 0:02:52]} 10. Qxd3 {[%clk 0:03:00]}  Bb4 {[%clk 0:02:52]} 11. O-O {[%clk 0:02:59]}  O-O {[%clk 0:02:52]} 12. Ne5 {[%clk 0:02:59]}  Qa5 {[%clk 0:02:45]} 13. f4 {[%clk 0:02:56]}  Rae8 {[%clk 0:02:31]} 14. Rf3 {[%clk 0:02:50]}  Bxc3 {[%clk 0:02:17]} 15. bxc3 {[%clk 0:02:47]}  Nxe5 {[%clk 0:02:17]} 16. fxe5 {[%clk 0:02:47]}  Ne4 {[%clk 0:02:18]} 17. Bh4 {[%clk 0:02:20]}  Qxc3 {[%clk 0:02:17]} 18. Qd1 {[%clk 0:02:06]}  f6 {[%clk 0:01:51]} 19. Rc1 {[%clk 0:02:02]}  Qd2 {[%clk 0:01:48]} 20. exf6 {[%clk 0:01:24]}  Qxd1+ {[%clk 0:01:48]} 21. Rxd1 {[%clk 0:01:24]}  Nxf6 {[%clk 0:01:48]} 22. Rb1 {[%clk 0:01:21]}  Re7 {[%clk 0:01:46]} 23. Bxf6 {[%clk 0:01:17]}  Rxf6 {[%clk 0:01:46]} 24. Rxf6 {[%clk 0:01:13]}  gxf6 {[%clk 0:01:47]} 25. Kf2 {[%clk 0:01:13]}  Kf7 {[%clk 0:01:47]} 26. a5 {[%clk 0:01:13]}  Ke6 {[%clk 0:01:44]} 27. Kf3 {[%clk 0:01:12]}  Kf5 {[%clk 0:01:34]} 28. g3 {[%clk 0:01:12]}  h5 {[%clk 0:01:33]} 29. Rb2 {[%clk 0:01:11]}  Kg5 {[%clk 0:01:28]} 30. h3 {[%clk 0:01:10]}  Rg7 {[%clk 0:01:20]} 31. Rb1 {[%clk 0:01:08]}  h4 {[%clk 0:01:00]} 32. gxh4+ {[%clk 0:00:55]}  Kxh4 {[%clk 0:01:00]} 33. Kf4 {[%clk 0:00:55]}  Kxh3 {[%clk 0:00:48]} 34. Kf5 {[%clk 0:00:51]}  Kg2 {[%clk 0:00:32]} 35. Kxf6 {[%clk 0:00:51]}  Rh7 {[%clk 0:00:32]} 36. Ke6 {[%clk 0:00:42]}  Kf3 {[%clk 0:00:31]} 37. Rb3 {[%clk 0:00:41]}  Ke2 {[%clk 0:00:31]} 38. Kd6 {[%clk 0:00:40]}  Kd2 {[%clk 0:00:29]} 39. Kc5 {[%clk 0:00:40]}  Kc2 {[%clk 0:00:28]} 40. Rb6 {[%clk 0:00:38]}  Kc3 {[%clk 0:00:23]} 41. Rb1 {[%clk 0:00:38]}  Re7 {[%clk 0:00:22]} 42. Rb6 {[%clk 0:00:34]}  Kd2 {[%clk 0:00:17]} 43. Rb2+ {[%clk 0:00:33]}  Kxe3 {[%clk 0:00:17]} 44. Rb3+ {[%clk 0:00:30]}  Kd2 {[%clk 0:00:16]} 45. Kd6 {[%clk 0:00:27]}  Kc2 {[%clk 0:00:14]} 46. Rb6 {[%clk 0:00:25]}  Rh7 {[%clk 0:00:13]} 47. Kc5 {[%clk 0:00:25]}  Kc3 {[%clk 0:00:13]} 48. Rb1 {[%clk 0:00:24]}  Kd3 {[%clk 0:00:14]} 49. Rb3+ {[%clk 0:00:24]}  Kc2 {[%clk 0:00:14]} 50. Rb6 {[%clk 0:00:24]}  Rg7 {[%clk 0:00:14]} 51. Rb4 {[%clk 0:00:23]}  Kc3 {[%clk 0:00:12]} 52. Rb1 {[%clk 0:00:23]}  Kd3 {[%clk 0:00:11]} 53. Rb3+ {[%clk 0:00:23]}  Ke4 {[%clk 0:00:12]} 54. Rb1 {[%clk 0:00:22]}  Kf5 {[%clk 0:00:12]} 55. Kd6 {[%clk 0:00:21]}  Rh7 {[%clk 0:00:11]} 56. Rb2 {[%clk 0:00:21]}  Kf4 {[%clk 0:00:06]} 57. Rb1 {[%clk 0:00:18]}  Ke4 {[%clk 0:00:06]} 58. Kc5 {[%clk 0:00:18]}  Kd3 {[%clk 0:00:06]} 59. Rb3+ {[%clk 0:00:19]}  Kd2 {[%clk 0:00:06]} 60. Rb2+ {[%clk 0:00:19]}  Ke3 {[%clk 0:00:07]} 61. Rb3+ {[%clk 0:00:18]}  Ke4 {[%clk 0:00:08]} 62. Rb1 {[%clk 0:00:17]}  Rh2 {[%clk 0:00:08]} 63. Re1+ {[%clk 0:00:15]}  Kd3 {[%clk 0:00:08]} 64. Rd1+ {[%clk 0:00:15]}  Rd2 {[%clk 0:00:07]} 65. Rb1 {[%clk 0:00:14]}  Rc2+ {[%clk 0:00:07]} 66. Kb6 {[%clk 0:00:14]}  Kxd4 {[%clk 0:00:07]} 67. Kxb7 {[%clk 0:00:14]}  c5 {[%clk 0:00:08]} 68. Kxa6 {[%clk 0:00:15]}  Ra2 {[%clk 0:00:08]} 69. Kb5 {[%clk 0:00:14]}  c4 {[%clk 0:00:09]} 70. a6 {[%clk 0:00:15]}  c3 {[%clk 0:00:09]} 71. Rb4+ {[%clk 0:00:15]}  Kd3 {[%clk 0:00:09]} 72. Ra4 {[%clk 0:00:15]}  Rxa4 {[%clk 0:00:08]} 73. Kxa4 {[%clk 0:00:16]}  c2 {[%clk 0:00:09]} 74. a7 {[%clk 0:00:17]}  c1=Q {[%clk 0:00:10]} 75. Kb5 {[%clk 0:00:18]}  Qa1 {[%clk 0:00:10]} 76. Kb6 {[%clk 0:00:18]}  d4 {[%clk 0:00:11]} 77. Kb5 {[%clk 0:00:17]}  Qxa7 {[%clk 0:00:10]} 78. Kb4 {[%clk 0:00:18]}  Qb7+ {[%clk 0:00:11]} 79. Ka3 {[%clk 0:00:18]}  Kc3 {[%clk 0:00:11]} 80. Ka2 {[%clk 0:00:19]}  Qb2# {[%clk 0:00:11]} 0-1


[Site "https://www.chess.com"]

[Event "Titled Tuesday Blitz August 15 Early 2023"]
[White "Rustemov, Alexander"]
[Black "Degenbaev, Aziz"]
[WhiteFideId "4119002"]
[BlackFideId "13802640"]
[WhiteElo "2776"]
[BlackElo "2535"]
[Result "0-1"]
[Round "5"]
[TimeControl "180+1"]
[Date "2023.08.15"]
[WhiteClock "0:00:09"]
[BlackClock "0:00:13"]
[Board "55"]

1. d4 {[%clk 0:03:00]}  Nf6 {[%clk 0:02:59]} 2. c4 {[%clk 0:03:01]}  g6 {[%clk 0:02:59]} 3. Nf3 {[%clk 0:03:01]}  Bg7 {[%clk 0:02:59]} 4. g3 {[%clk 0:03:01]}  c5 {[%clk 0:03:00]} 5. Bg2 {[%clk 0:02:59]}  cxd4 {[%clk 0:03:00]} 6. Nxd4 {[%clk 0:02:58]}  h5 {[%clk 0:03:00]} 7. h3 {[%clk 0:02:53]}  O-O {[%clk 0:02:56]} 8. Nc3 {[%clk 0:02:51]}  Nc6 {[%clk 0:02:56]} 9. O-O {[%clk 0:02:47]}  d6 {[%clk 0:02:54]} 10. e3 {[%clk 0:02:37]}  Bd7 {[%clk 0:02:48]} 11. b3 {[%clk 0:02:36]}  a6 {[%clk 0:02:47]} 12. Bb2 {[%clk 0:02:35]}  Rb8 {[%clk 0:02:46]} 13. Rc1 {[%clk 0:02:34]}  Nxd4 {[%clk 0:02:42]} 14. exd4 {[%clk 0:02:31]}  b5 {[%clk 0:02:42]} 15. c5 {[%clk 0:02:29]}  dxc5 {[%clk 0:02:36]} 16. dxc5 {[%clk 0:02:28]}  Qc8 {[%clk 0:02:37]} 17. Kh2 {[%clk 0:02:07]}  Bc6 {[%clk 0:02:29]} 18. b4 {[%clk 0:02:01]}  a5 {[%clk 0:02:11]} 19. a3 {[%clk 0:02:01]}  axb4 {[%clk 0:02:09]} 20. axb4 {[%clk 0:02:02]}  Rd8 {[%clk 0:02:02]} 21. Qe2 {[%clk 0:02:01]}  Bxg2 {[%clk 0:02:01]} 22. Kxg2 {[%clk 0:02:01]}  Qc6+ {[%clk 0:02:01]} 23. Qf3 {[%clk 0:01:50]}  Qxf3+ {[%clk 0:01:48]} 24. Kxf3 {[%clk 0:01:51]}  Rd4 {[%clk 0:01:49]} 25. Ba3 {[%clk 0:01:35]}  Nd7 {[%clk 0:01:30]} 26. Ke2 {[%clk 0:01:28]}  Ne5 {[%clk 0:01:27]} 27. Rfd1 {[%clk 0:01:23]}  Rxd1 {[%clk 0:00:52]} 28. Rxd1 {[%clk 0:01:18]}  Nc4 {[%clk 0:00:49]} 29. Nb1 {[%clk 0:01:13]}  Ra8 {[%clk 0:00:48]} 30. Rd3 {[%clk 0:01:09]}  Ra6 {[%clk 0:00:38]} 31. Bc1 {[%clk 0:01:04]}  Ra2+ {[%clk 0:00:32]} 32. Kf1 {[%clk 0:00:53]}  Rc2 {[%clk 0:00:29]} 33. Bd2 {[%clk 0:00:42]}  Rb2 {[%clk 0:00:20]} 34. Rd8+ {[%clk 0:00:18]}  Kh7 {[%clk 0:00:20]} 35. c6 {[%clk 0:00:19]}  Rxb1+ {[%clk 0:00:20]} 36. Ke2 {[%clk 0:00:19]}  Be5 {[%clk 0:00:19]} 37. Bf4 {[%clk 0:00:11]}  Bxf4 {[%clk 0:00:14]} 38. gxf4 {[%clk 0:00:12]}  Rc1 {[%clk 0:00:12]} 39. c7 {[%clk 0:00:11]}  Nd6 {[%clk 0:00:13]} 40. Rd7 {[%clk 0:00:09]}  Nf5 {[%clk 0:00:08]} 41. Kd3 {[%clk 0:00:08]}  Kg7 {[%clk 0:00:07]} 42. Ke4 {[%clk 0:00:08]}  Kf6 {[%clk 0:00:07]} 43. Kd5 {[%clk 0:00:07]}  e6+ {[%clk 0:00:05]} 44. Ke4 {[%clk 0:00:08]}  Ne7 {[%clk 0:00:05]} 45. Kd3 {[%clk 0:00:05]}  Nd5 {[%clk 0:00:05]} 46. Kd4 {[%clk 0:00:03]}  Rxc7 {[%clk 0:00:04]} 47. Rd8 {[%clk 0:00:03]}  Rc4+ {[%clk 0:00:04]} 48. Kd3 {[%clk 0:00:03]}  Rxb4 {[%clk 0:00:04]} 49. Rb8 {[%clk 0:00:03]}  Rxf4 {[%clk 0:00:04]} 50. Ke2 {[%clk 0:00:03]}  Re4+ {[%clk 0:00:04]} 51. Kf3 {[%clk 0:00:03]}  Rf4+ {[%clk 0:00:05]} 52. Kg3 {[%clk 0:00:03]}  b4 {[%clk 0:00:06]} 53. h4 {[%clk 0:00:03]}  Rc4 {[%clk 0:00:07]} 54. f3 {[%clk 0:00:03]}  Rc3 {[%clk 0:00:07]} 55. Rb7 {[%clk 0:00:03]}  b3 {[%clk 0:00:08]} 56. Kf2 {[%clk 0:00:03]}  Rc2+ {[%clk 0:00:08]} 57. Kg3 {[%clk 0:00:04]}  b2 {[%clk 0:00:09]} 58. Rb8 {[%clk 0:00:03]}  Nc3 {[%clk 0:00:07]} 59. Kf4 {[%clk 0:00:03]}  b1=Q {[%clk 0:00:07]} 60. Rxb1 {[%clk 0:00:03]}  Nxb1 {[%clk 0:00:08]} 61. Kg3 {[%clk 0:00:03]}  Rc3 {[%clk 0:00:08]} 62. Kf4 {[%clk 0:00:04]}  Nd2 {[%clk 0:00:09]} 63. Kg3 {[%clk 0:00:03]}  Rxf3+ {[%clk 0:00:09]} 64. Kg2 {[%clk 0:00:04]}  Rf4 {[%clk 0:00:10]} 65. Kg3 {[%clk 0:00:04]}  Rg4+ {[%clk 0:00:10]} 66. Kh3 {[%clk 0:00:05]}  Ra4 {[%clk 0:00:10]} 67. Kg3 {[%clk 0:00:05]}  e5 {[%clk 0:00:11]} 68. Kh3 {[%clk 0:00:06]}  e4 {[%clk 0:00:12]} 69. Kg3 {[%clk 0:00:07]}  e3 {[%clk 0:00:13]} 70. Kg2 {[%clk 0:00:06]}  e2 {[%clk 0:00:13]} 71. Kf2 {[%clk 0:00:06]}  Re4 {[%clk 0:00:14]} 72. Ke1 {[%clk 0:00:06]}  Nf3+ {[%clk 0:00:14]} 73. Kf2 {[%clk 0:00:07]}  e1=Q+ {[%clk 0:00:14]} 74. Kg2 {[%clk 0:00:08]}  Qe2+ {[%clk 0:00:13]} 75. Kg3 {[%clk 0:00:08]}  Rg4+ {[%clk 0:00:12]} 76. Kh3 {[%clk 0:00:09]}  Qg2# {[%clk 0:00:13]} 0-1


[Site "https://www.chess.com"]

[Event "Titled Tuesday Blitz August 15 Early 2023"]
[White "Wagner, Dennis"]
[Black "dr_tatiana"]
[WhiteFideId "24650684"]
[WhiteElo "2773"]
[BlackElo "2459"]
[Result "1-0"]
[Round "5"]
[TimeControl "180+1"]
[Date "2023.08.15"]
[WhiteClock "0:00:08"]
[BlackClock "0:00:06"]
[Board "56"]

1. e4 {[%clk 0:03:00]}  e5 {[%clk 0:02:59]} 2. Nf3 {[%clk 0:03:01]}  Nc6 {[%clk 0:02:59]} 3. Bc4 {[%clk 0:03:01]}  Bc5 {[%clk 0:02:58]} 4. d3 {[%clk 0:03:02]}  Nf6 {[%clk 0:02:57]} 5. O-O {[%clk 0:03:00]}  d6 {[%clk 0:02:57]} 6. Be3 {[%clk 0:03:00]}  Bb6 {[%clk 0:02:52]} 7. a4 {[%clk 0:02:56]}  O-O {[%clk 0:02:47]} 8. h3 {[%clk 0:02:52]}  Ne7 {[%clk 0:02:44]} 9. Bg5 {[%clk 0:02:42]}  Ng6 {[%clk 0:02:44]} 10. a5 {[%clk 0:02:41]}  Bc5 {[%clk 0:02:44]} 11. Nh4 {[%clk 0:02:28]}  Nf4 {[%clk 0:02:03]} 12. Bxf4 {[%clk 0:01:57]}  exf4 {[%clk 0:02:03]} 13. Nf3 {[%clk 0:01:44]}  a6 {[%clk 0:01:59]} 14. d4 {[%clk 0:01:42]}  Ba7 {[%clk 0:01:59]} 15. Re1 {[%clk 0:01:36]}  d5 {[%clk 0:01:46]} 16. exd5 {[%clk 0:01:34]}  Nxd5 {[%clk 0:01:47]} 17. Qd2 {[%clk 0:01:08]}  c6 {[%clk 0:01:18]} 18. Bxd5 {[%clk 0:01:04]}  Qxd5 {[%clk 0:01:19]} 19. Qxf4 {[%clk 0:01:02]}  Bb8 {[%clk 0:01:15]} 20. Qh4 {[%clk 0:00:55]}  Bf5 {[%clk 0:00:56]} 21. c3 {[%clk 0:00:31]}  Qb5 {[%clk 0:00:44]} 22. b4 {[%clk 0:00:18]}  Bd6 {[%clk 0:00:44]} 23. Nbd2 {[%clk 0:00:15]}  Qd3 {[%clk 0:00:43]} 24. Re3 {[%clk 0:00:14]}  Qc2 {[%clk 0:00:39]} 25. Rae1 {[%clk 0:00:15]}  Bg6 {[%clk 0:00:27]} 26. Ne4 {[%clk 0:00:15]}  Bc7 {[%clk 0:00:11]} 27. Nc5 {[%clk 0:00:15]}  b6 {[%clk 0:00:12]} 28. axb6 {[%clk 0:00:15]}  Bxb6 {[%clk 0:00:11]} 29. Nd7 {[%clk 0:00:15]}  Bd8 {[%clk 0:00:11]} 30. Qg3 {[%clk 0:00:08]}  Bf6 {[%clk 0:00:07]} 31. Nxf8 {[%clk 0:00:08]}  Rxf8 {[%clk 0:00:08]} 32. Qd6 {[%clk 0:00:07]}  h6 {[%clk 0:00:06]} 33. Qxf8+ {[%clk 0:00:08]}  Kxf8 {[%clk 0:00:06]} 34. Re8# {[%clk 0:00:08]} 1-0


[Site "https://www.chess.com"]

[Event "Titled Tuesday Blitz August 15 Early 2023"]
[White "Bueno, Alfeu Junior Varela"]
[Black "Schmakel, Sam"]
[WhiteFideId "2108879"]
[BlackFideId "2039311"]
[WhiteElo "2447"]
[BlackElo "2770"]
[Result "0-1"]
[Round "5"]
[TimeControl "180+1"]
[Date "2023.08.15"]
[WhiteClock "0:00:43"]
[BlackClock "0:00:16"]
[Board "57"]

1. e4 {[%clk 0:03:00]}  e5 {[%clk 0:02:56]} 2. Nc3 {[%clk 0:03:00]}  Nf6 {[%clk 0:02:56]} 3. f4 {[%clk 0:03:00]}  d5 {[%clk 0:02:54]} 4. fxe5 {[%clk 0:03:00]}  Nxe4 {[%clk 0:02:54]} 5. Qf3 {[%clk 0:03:01]}  Nc6 {[%clk 0:02:52]} 6. Bb5 {[%clk 0:03:00]}  Nxc3 {[%clk 0:02:37]} 7. dxc3 {[%clk 0:03:00]}  Qh4+ {[%clk 0:02:35]} 8. g3 {[%clk 0:03:00]}  Qe4+ {[%clk 0:02:36]} 9. Qxe4 {[%clk 0:03:00]}  dxe4 {[%clk 0:02:37]} 10. Bxc6+ {[%clk 0:03:00]}  bxc6 {[%clk 0:02:36]} 11. Be3 {[%clk 0:02:58]}  h5 {[%clk 0:02:22]} 12. h3 {[%clk 0:02:56]}  a5 {[%clk 0:02:11]} 13. Ne2 {[%clk 0:02:45]}  a4 {[%clk 0:01:59]} 14. O-O-O {[%clk 0:02:39]}  Ra5 {[%clk 0:01:47]} 15. Bf4 {[%clk 0:02:10]}  Be7 {[%clk 0:01:41]} 16. h4 {[%clk 0:02:02]}  Bg4 {[%clk 0:01:37]} 17. Rhe1 {[%clk 0:01:58]}  Bc5 {[%clk 0:01:29]} 18. Rd2 {[%clk 0:01:50]}  Bf2 {[%clk 0:01:19]} 19. Bg5 {[%clk 0:01:17]}  O-O {[%clk 0:00:50]} 20. Red1 {[%clk 0:01:09]}  e3 {[%clk 0:00:49]} 21. Rd8 {[%clk 0:01:09]}  f6 {[%clk 0:00:31]} 22. exf6 {[%clk 0:01:00]}  Bxe2 {[%clk 0:00:19]} 23. Rxf8+ {[%clk 0:00:55]}  Kxf8 {[%clk 0:00:19]} 24. Rd7 {[%clk 0:00:54]}  gxf6 {[%clk 0:00:17]} 25. Bh6+ {[%clk 0:00:47]}  Ke8 {[%clk 0:00:17]} 26. Rxc7 {[%clk 0:00:43]}  Rd5 {[%clk 0:00:16]} 0-1


[Site "https://www.chess.com"]